fUSD/lending_fUSD_20240105
["ID","MTS","AMOUNT","RATE_DAILY","PERIOD"]
[310292956,1704463910720,-500.0,0.00031425,2]
[310292957,1704463910730,-509.0604016,0.00031425,2]
[310292958,1704463910740,-505.41019461,0.00031425,2]
[310292959,1704463910749,-500.0,0.00031425,2]
[310292960,1704463910762,-500.0,0.00031425,2]
[310292961,1704463910772,-506.02691737,0.00031425,2]
[310292962,1704463910781,-500.0,0.00031425,2]
[310292963,1704463910790,-500.0,0.00031425,2]
[310292964,1704463910800,-500.0,0.00031425,2]
[310292965,1704463910810,-269.63642041,0.00031425,2]
[310292966,1704463910820,-529.19479441,0.00031425,2]
[310292967,1704463910829,-500.0,0.00031425,2]
[310292968,1704463910839,-1444.79,0.00031425,2]
[310292969,1704463910849,-947.41,0.00031425,2]
[310292970,1704463910859,-500.0,0.00031425,2]
[310292971,1704463910869,-500.0,0.00031425,2]
[310292972,1704463910879,-500.0,0.00031425,2]
[310292973,1704463910889,-2917.19,0.00031425,2]
[310292974,1704463910899,-500.0,0.00031425,2]
[310292975,1704463910908,-288.91567624,0.00031425,2]
[310292976,1704463910917,-1039.42,0.00031425,2]
[310292977,1704463910927,-500.0,0.00031425,2]
[310292978,1704463910936,-588.09,0.00031425,2]
[310292979,1704463910946,-633.3112265,0.00031425,2]
[310292980,1704463910955,-500.0,0.00031425,2]
[310292981,1704463910965,-984.84,0.00031425,2]
[310292982,1704463910974,-1577.2,0.00031425,2]
[310292983,1704463910984,-500.0,0.00031425,2]
[310292984,1704463910994,-500.0,0.00031425,2]
[310292985,1704463911003,-1004.25,0.00031425,2]
[310292986,1704463911014,-500.0,0.00031425,2]
[310292987,1704463911024,-500.0,0.00031425,2]
[310292988,1704463911034,-941.19,0.00031425,2]
[310292989,1704463911043,-500.0,0.00031425,2]
[310292990,1704463911054,-500.0,0.00031425,2]
[310292991,1704463911063,-587.5,0.00031425,2]
[310292992,1704463911073,-500.0,0.00031425,2]
[310292993,1704463911083,-684.69,0.00031425,2]
[310292994,1704463911093,-500.0,0.00031425,2]
[310292995,1704463911103,-500.0,0.00031425,2]
[310292996,1704463911113,-502.66,0.00031425,2]
[310292997,1704463911122,-502.51869399,0.00031425,2]
[310292998,1704463911132,-1249.93,0.00031425,2]
[310292999,1704463911142,-700.39,0.00031425,2]
[310293000,1704463911152,-960.04,0.00031425,2]
[310293001,1704463911161,-500.0,0.00031425,2]
[310293002,1704463911171,-500.0,0.00031425,2]
[310293003,1704463911180,-537.41,0.00031425,2]
[310293004,1704463911190,-667.92,0.00031425,2]
[310293005,1704463911200,-510.05,0.00031425,2]
[310293006,1704463911209,-978.16,0.00031425,2]
[310293007,1704463911219,-500.0,0.00031425,2]
[310293008,1704463911228,-945.97,0.00031425,2]
[310293009,1704463911238,-1019.98,0.00031425,2]
[310293010,1704463911246,-500.0,0.00031425,2]
[310293011,1704463911256,-803.57,0.00031425,2]
[310293012,1704463911266,-889.76,0.00031425,2]
[310293013,1704463911275,-610.92,0.00031425,2]
[310293014,1704463911285,-605.09,0.00031425,2]
[310293015,1704463911295,-500.0,0.00031425,2]
[310293016,1704463911307,-571.57,0.00031425,2]
[310293017,1704463911316,-500.0,0.00031425,2]
[310293018,1704463911326,-500.0,0.00031425,2]
[310293019,1704463911336,-500.0,0.00031425,2]
[310293020,1704463911346,-500.0,0.00031425,2]
[310293021,1704463911355,-500.0,0.00031425,2]
[310293022,1704463911365,-467.85385639,0.00031425,2]
[310293023,1704463911375,-500.0,0.00031425,2]
[310293024,1704463911384,-2870.7269371,0.00031484,2]
[310293025,1704463911394,-3054.4035212,0.00031484,2]
[310293026,1704463911403,-500.0,0.000315,2]
[310293027,1704463911413,-500.0,0.00031506,2]
[310293028,1704463911422,-500.0,0.00031506,2]
[310293029,1704463911432,-500.0,0.00031506,2]
[310293030,1704463911442,-500.0,0.00031506,2]
[310293031,1704463911453,-578.99,0.00031506,2]
[310293032,1704463911462,-570.77,0.00031506,2]
[310293033,1704463911473,-500.0,0.00031506,2]
[310293034,1704463911482,-474.12611341,0.00031506,2]
[310293035,1704463911492,-500.0,0.00031506,2]
[310293036,1704463911515,-500.0,0.00031506,2]
[310293037,1704463911526,-500.0,0.00031506,2]
[310293038,1704463911537,-500.0,0.00031506,2]
[310293039,1704463911550,-500.0,0.00031506,2]
[310293040,1704463911560,-500.0,0.00031506,2]
[310293041,1704463911571,-500.0,0.00031506,2]
[310293042,1704463911581,-500.0,0.00031506,2]
[310293043,1704463911592,-500.0,0.00031506,2]
[310293044,1704463911603,-964.18,0.00031506,2]
[310293045,1704463911614,-500.0,0.00031506,2]
[310293046,1704463911624,-500.0,0.00031506,2]
[310293047,1704463911634,-500.0,0.00031506,2]
[310293048,1704463911644,-500.0,0.00031506,2]
[310293049,1704463911654,-500.0,0.00031506,2]
[310293050,1704463911667,-500.0,0.00031506,2]
[310293051,1704463911677,-219.43075756,0.00031506,2]
[310293052,1704463911687,-500.0,0.00031506,2]
[310293053,1704463911697,-500.0,0.00031506,2]
[310293054,1704463911707,-541.4021055,0.00031506,2]
[310293055,1704463911717,-500.0,0.00031506,2]
[310293056,1704463911727,-500.0,0.00031506,2]
[310293057,1704463911739,-500.0,0.00031506,2]
[310293058,1704463911749,-500.0,0.00031506,2]
[310293059,1704463911759,-500.0,0.00031506,2]
[310293060,1704463911769,-500.0,0.00031506,2]
[310293061,1704463911779,-500.0,0.00031506,2]
[310293062,1704463911789,-500.0,0.00031506,2]
[310293063,1704463911800,-500.0,0.00031506,2]
[310293064,1704463911810,-500.0,0.00031506,2]
[310293065,1704463911820,-500.0,0.00031506,2]
[310293066,1704463911830,-500.0,0.00031506,2]
[310293067,1704463911841,-500.0,0.00031506,2]
[310293068,1704463911851,-500.0,0.00031506,2]
[310293069,1704463911861,-500.0,0.00031506,2]
[310293070,1704463911871,-500.0,0.00031506,2]
[310293071,1704463911881,-475.9428566,0.00031506,2]
[310293072,1704463911891,-500.0,0.00031506,2]
[310293073,1704463911900,-203.78942533,0.00031506,2]
[310293074,1704463911910,-595.80445432,0.00031506,2]
[310293075,1704463911920,-500.0,0.00031506,2]
[310293076,1704463911930,-776.92,0.00031506,2]
[310293077,1704463911940,-500.0,0.00031506,2]
[310293078,1704463911949,-172.62864663,0.00031506,2]
[310293079,1704463911959,-500.0,0.00031506,2]
[310293080,1704463911968,-643.58346198,0.00031506,2]
[310293081,1704463911978,-500.0,0.00031506,2]
[310293082,1704463911987,-500.0,0.00031506,2]
[310293083,1704463911997,-500.0,0.00031506,2]
[310293084,1704463912007,-500.0,0.00031506,2]
[310293085,1704463912016,-500.0,0.00031506,2]
[310293086,1704463912027,-500.0,0.00031506,2]
[310293087,1704463912037,-500.0,0.00031506,2]
[310293088,1704463912046,-754.78,0.00031506,2]
[310293089,1704463912056,-374.72102295,0.00031506,2]
[310293090,1704463912065,-608.57,0.00031506,2]
[310293091,1704463912075,-500.0,0.00031506,2]
[310293092,1704463912085,-500.0,0.00031506,2]
[310293093,1704463912094,-500.0,0.00031506,2]
[310293094,1704463912105,-500.0,0.00031506,2]
[310293095,1704463912116,-500.0,0.00031506,2]
[310293096,1704463912126,-500.0,0.00031506,2]
[310293097,1704463912136,-500.0,0.00031506,2]
[310293098,1704463912145,-574.49,0.00031506,2]
[310293099,1704463912156,-500.0,0.00031506,2]
[310293100,1704463912166,-500.0,0.00031506,2]
[310293101,1704463912175,-500.0,0.00031506,2]
[310293102,1704463912185,-500.0,0.00031506,2]
[310293103,1704463912194,-500.0,0.00031506,2]
[310293104,1704463912204,-597.18,0.00031506,2]
[310293105,1704463912213,-532.1630173,0.00031506,2]
[310293106,1704463912223,-557.10334298,0.00031506,2]
[310293107,1704463912233,-500.0,0.00031506,2]
[310293108,1704463912242,-500.0,0.00031506,2]
[310293109,1704463912251,-1000.0,0.00031506,2]
[310293110,1704463912260,-500.0,0.00031506,2]
[310293111,1704463912270,-535.87,0.00031506,2]
[310293112,1704463912279,-500.0,0.00031506,2]
[310293113,1704463912289,-500.0,0.00031506,2]
[310293114,1704463912299,-500.0,0.00031506,2]
[310293115,1704463912309,-500.0,0.00031506,2]
[310293116,1704463912318,-500.0,0.00031506,2]
[310293117,1704463912327,-354.69587167,0.00031506,2]
[310293118,1704463912336,-500.0,0.00031506,2]
[310293119,1704463912346,-500.0,0.00031506,2]
[310293120,1704463912355,-500.0,0.00031506,2]
[310293121,1704463912365,-500.0,0.00031506,2]
[310293122,1704463912375,-500.0,0.00031506,2]
[310293123,1704463912385,-500.0,0.00031506,2]
[310293124,1704463912394,-847.71,0.00031506,2]
[310293125,1704463912405,-472.01669998,0.00031506,2]
[310293126,1704463912414,-317.31973608,0.00031506,2]
[310293127,1704463912424,-500.0,0.00031506,2]
[310293128,1704463912434,-500.0,0.00031506,2]
[310293129,1704463912443,-500.0,0.00031506,2]
[310293130,1704463912454,-500.0,0.00031506,2]
[310293131,1704463912463,-500.0,0.00031506,2]
[310293132,1704463912473,-500.0,0.00031506,2]
[310293133,1704463912482,-500.0,0.00031506,2]
[310293134,1704463912492,-500.0,0.00031506,2]
[310293135,1704463912501,-500.0,0.00031506,2]
[310293136,1704463912510,-500.0,0.00031506,2]
[310293137,1704463912521,-939.06,0.00031506,2]
[310293138,1704463912530,-500.0,0.00031506,2]
[310293139,1704463912540,-500.0,0.00031506,2]
[310293140,1704463912551,-500.0,0.00031506,2]
[310293141,1704463912560,-572.54285252,0.00031506,2]
[310293142,1704463912570,-500.0,0.00031506,2]
[310293143,1704463912579,-500.0,0.00031506,2]
[310293144,1704463912588,-500.0,0.00031506,2]
[310293145,1704463912598,-500.0,0.00031506,2]
[310293146,1704463912607,-617.42,0.00031506,2]
[310293147,1704463912620,-473.0018343,0.00031506,2]
[310293148,1704463912629,-500.0,0.00031506,2]
[310293149,1704463912639,-559.70053918,0.00031506,2]
[310293150,1704463912649,-500.0,0.00031506,2]
[310293151,1704463912659,-500.0,0.00031506,2]
[310293152,1704463912669,-763.35,0.00031506,2]
[310293153,1704463912679,-500.0,0.00031506,2]
[310293154,1704463912689,-581.06,0.00031506,2]
[310293155,1704463912701,-500.0,0.00031506,2]
[310293156,1704463912711,-533.25,0.00031506,2]
[310293157,1704463912721,-519.64500089,0.00031506,2]
[310293158,1704463912730,-1032.57,0.00031506,2]
[310293159,1704463912740,-500.0,0.00031506,2]
[310293160,1704463912749,-500.0,0.00031506,2]
[310293161,1704463912757,-668.81,0.00031506,2]
[310293162,1704463912766,-500.0,0.00031506,2]
[310293163,1704463912775,-897.42,0.00031506,2]
[310293164,1704463912784,-500.0,0.00031506,2]
[310293165,1704463912793,-500.0,0.00031506,2]
[310293166,1704463912802,-610.9,0.00031506,2]
[310293167,1704463912811,-542.23,0.00031506,2]
[310293168,1704463912821,-500.0,0.00031506,2]
[310293169,1704463912830,-500.0,0.00031506,2]
[310293170,1704463912839,-500.0,0.00031506,2]
[310293171,1704463912848,-500.0,0.00031506,2]
[310293172,1704463912857,-977.28,0.00031506,2]
[310293173,1704463912866,-500.0,0.00031506,2]
[310293174,1704463912875,-500.0,0.00031506,2]
[310293175,1704463912884,-545.22940492,0.00031506,2]
[310293176,1704463912893,-493.51665478,0.00031506,2]
[310293177,1704463912902,-500.0,0.00031506,2]
[310293178,1704463912911,-564.72,0.00031506,2]
[310293179,1704463912920,-500.0,0.00031506,2]
[310293180,1704463912930,-623.13,0.00031506,2]
[310293181,1704463912939,-500.0,0.00031506,2]
[310293182,1704463912948,-500.0,0.00031506,2]
[310293183,1704463912957,-660.13,0.00031506,2]
[310293184,1704463912967,-500.0,0.00031506,2]
[310293185,1704463912975,-294.63562459,0.00031506,2]
[310293186,1704463912984,-1107.9,0.00031506,2]
[310293187,1704463912993,-500.0,0.00031506,2]
[310293188,1704463913003,-500.0,0.00031506,2]
[310293189,1704463913012,-500.0,0.00031506,2]
[310293190,1704463913022,-500.0,0.00031506,2]
[310293191,1704463913031,-500.0,0.00031506,2]
[310293192,1704463913040,-500.0,0.00031506,2]
[310293193,1704463913050,-534.02,0.00031506,2]
[310293194,1704463913059,-500.0,0.00031506,2]
[310293195,1704463913069,-1001.59,0.00031506,2]
[310293196,1704463913078,-500.0,0.00031506,2]
[310293197,1704463913087,-500.0,0.00031506,2]
[310293198,1704463913097,-394.28452197,0.00031506,2]
[310293199,1704463913106,-500.0,0.00031506,2]
[310293200,1704463913117,-500.0,0.00031506,2]
[310293201,1704463913336,-500.0,0.00031506,2]
[310293202,1704463913347,-500.0,0.00031506,2]
[310293203,1704463913356,-563.82225728,0.00031506,2]
[310293204,1704463913367,-577.73,0.00031506,2]
[310293205,1704463913376,-500.0,0.00031506,2]
[310293206,1704463913386,-529.90056119,0.00031506,2]
[310293207,1704463913395,-515.35,0.00031506,2]
[310293208,1704463913404,-500.0,0.00031506,2]
[310293209,1704463913413,-500.0,0.00031506,2]
[310293210,1704463913422,-500.0,0.00031506,2]
[310293211,1704463913432,-528.01,0.00031506,2]
[310293212,1704463913442,-500.0,0.00031506,2]
[310293213,1704463913453,-500.0,0.00031506,2]
[310293214,1704463913463,-176.50788115,0.00031506,2]
[310293215,1704463913473,-500.0,0.00031506,2]
[310293216,1704463913483,-609.91,0.00031506,2]
[310293217,1704463913492,-500.0,0.00031506,2]
[310293218,1704463913502,-500.0,0.00031506,2]
[310293219,1704463913511,-3164.14,0.00031506,2]
[310293220,1704463913520,-500.0,0.00031506,2]
[310293221,1704463913530,-525.64866756,0.00031506,2]
[310293222,1704463913539,-500.0,0.00031506,2]
[310293223,1704463913550,-767.51,0.00031506,2]
[310293224,1704463913559,-500.0,0.00031506,2]
[310293225,1704463913568,-500.0,0.00031506,2]
[310293226,1704463913577,-500.0,0.00031506,2]
[310293227,1704463913587,-558.98663392,0.00031506,2]
[310293228,1704463913596,-500.0,0.00031506,2]
[310293229,1704463913605,-500.0,0.00031506,2]
[310293230,1704463913615,-393.45564731,0.00031506,2]
[310293231,1704463913625,-500.0,0.00031506,2]
[310293232,1704463913635,-500.0,0.00031506,2]
[310293233,1704463913644,-500.0,0.00031506,2]
[310293234,1704463913654,-500.0,0.00031506,2]
[310293235,1704463913663,-572.23,0.00031506,2]
[310293236,1704463913673,-500.0,0.00031506,2]
[310293237,1704463913682,-500.0,0.00031506,2]
[310293238,1704463913691,-500.0,0.00031506,2]
[310293239,1704463913701,-1043.05,0.00031506,2]
[310293240,1704463913709,-663.96,0.00031506,2]
[310293241,1704463913718,-500.0,0.00031506,2]
[310293242,1704463913728,-349.31566071,0.00031506,2]
[310293243,1704463913737,-969.42,0.00031506,2]
[310293244,1704463913747,-500.0,0.00031506,2]
[310293245,1704463913757,-500.0,0.00031506,2]
[310293246,1704463913767,-500.0,0.00031506,2]
[310293247,1704463913776,-500.0,0.00031506,2]
[310293248,1704463913787,-951.95,0.00031506,2]
[310293249,1704463913797,-500.0,0.00031506,2]
[310293250,1704463913807,-500.0,0.00031506,2]
[310293251,1704463913817,-500.0,0.00031506,2]
[310293252,1704463913827,-500.0,0.00031506,2]
[310293253,1704463913837,-500.0,0.00031506,2]
[310293254,1704463913846,-500.0,0.00031506,2]
[310293255,1704463913855,-500.0,0.00031506,2]
[310293256,1704463913865,-454.78105138,0.00031506,2]
[310293257,1704463913874,-585.0,0.00031506,2]
[310293258,1704463913885,-795.33,0.00031506,2]
[310293259,1704463913894,-500.0,0.00031506,2]
[310293260,1704463913903,-379.45489863,0.00031506,2]
[310293261,1704463913913,-500.0,0.00031506,2]
[310293262,1704463913922,-500.0,0.00031506,2]
[310293263,1704463913932,-500.0,0.00031506,2]
[310293264,1704463913941,-500.0,0.00031506,2]
[310293265,1704463913950,-500.0,0.00031506,2]
[310293266,1704463913960,-500.0,0.00031506,2]
[310293267,1704463913970,-535.25,0.00031506,2]
[310293268,1704463913980,-573.11,0.00031506,2]
[310293269,1704463913989,-500.0,0.00031506,2]
[310293270,1704463913998,-616.0877986,0.00031506,2]
[310293271,1704463914008,-1278.92,0.00031506,2]
[310293272,1704463914017,-500.0,0.00031506,2]
[310293273,1704463914026,-522.9,0.00031506,2]
[310293274,1704463914035,-500.0,0.00031506,2]
[310293275,1704463914044,-1115.46,0.00031506,2]
[310293276,1704463914055,-500.0,0.00031506,2]
[310293277,1704463914065,-500.0,0.00031506,2]
[310293278,1704463914075,-403.59385946,0.00031506,2]
[310293279,1704463914084,-414.8260588,0.00031506,2]
[310293280,1704463914093,-503.15,0.00031506,2]
[310293281,1704463914103,-500.0,0.00031506,2]
[310293282,1704463914113,-500.0,0.00031506,2]
[310293283,1704463914122,-500.0,0.00031506,2]
[310293284,1704463914132,-500.0,0.00031506,2]
[310293285,1704463914142,-898.64,0.00031506,2]
[310293286,1704463914151,-500.0,0.00031506,2]
[310293287,1704463914161,-500.0,0.00031506,2]
[310293288,1704463914172,-500.0,0.00031506,2]
[310293289,1704463914182,-2197.46,0.00031506,2]
[310293290,1704463914192,-500.0,0.00031506,2]
[310293291,1704463914201,-1050.63,0.00031506,2]
[310293292,1704463914211,-500.0,0.00031506,2]
[310293293,1704463914221,-500.0,0.00031506,2]
[310293294,1704463914231,-500.0,0.00031506,2]
[310293295,1704463914241,-512.25,0.00031506,2]
[310293296,1704463914249,-500.0,0.00031506,2]
[310293297,1704463914258,-500.0,0.00031506,2]
[310293298,1704463914269,-652.42,0.00031506,2]
[310293299,1704463914279,-500.0,0.00031506,2]
[310293300,1704463914289,-500.0,0.00031506,2]
[310293301,1704463914300,-500.0,0.00031506,2]
[310293302,1704463914309,-500.96,0.00031506,2]
[310293303,1704463914318,-500.0,0.00031506,2]
[310293304,1704463914327,-500.0,0.00031506,2]
[310293305,1704463914337,-500.0,0.00031506,2]
[310293306,1704463914346,-737.52,0.00031506,2]
[310293307,1704463914356,-500.0,0.00031506,2]
[310293308,1704463914366,-500.0,0.00031506,2]
[310293309,1704463914376,-500.0,0.00031506,2]
[310293310,1704463914385,-500.0,0.00031506,2]
[310293311,1704463914395,-500.0,0.00031506,2]
[310293312,1704463914405,-1408.67,0.00031506,2]
[310293313,1704463914415,-500.0,0.00031506,2]
[310293314,1704463914425,-500.0,0.00031506,2]
[310293315,1704463914435,-519.09,0.00031506,2]
[310293316,1704463914445,-500.0,0.00031506,2]
[310293317,1704463914455,-500.0,0.00031506,2]
[310293318,1704463914464,-500.0,0.00031506,2]
[310293319,1704463914474,-500.0,0.00031506,2]
[310293320,1704463914483,-500.0,0.00031506,2]
[310293321,1704463914493,-500.0,0.00031506,2]
[310293322,1704463914503,-513.39907384,0.00031506,2]
[310293323,1704463914512,-500.0,0.00031506,2]
[310293324,1704463914522,-406.79142903,0.00031506,2]
[310293325,1704463914531,-1017.17,0.00031506,2]
[310293326,1704463914541,-500.0,0.00031506,2]
[310293327,1704463914551,-500.0,0.00031506,2]
[310293328,1704463914560,-500.0,0.00031506,2]
[310293329,1704463914570,-500.0,0.00031506,2]
[310293330,1704463914579,-500.0,0.00031506,2]
[310293331,1704463914588,-1228.15,0.00031506,2]
[310293332,1704463914598,-162.16682615,0.00031506,2]
[310293333,1704463914607,-1193.22,0.00031506,2]
[310293334,1704463914620,-500.0,0.00031506,2]
[310293335,1704463914635,-500.0,0.00031506,2]
[310293336,1704463914658,-500.0,0.00031506,2]
[310293337,1704463914676,-1709.82,0.00031506,2]
[310293338,1704463914696,-500.0,0.00031506,2]
[310293339,1704463914714,-500.0,0.00031506,2]
[310293340,1704463914734,-500.0,0.00031506,2]
[310293341,1704463914752,-500.0,0.00031506,2]
[310293342,1704463914768,-521.26,0.00031506,2]
[310293343,1704463914790,-1009.32,0.00031506,2]
[310293344,1704463914809,-500.0,0.00031506,2]
[310293345,1704463914829,-769.11,0.00031506,2]
[310293346,1704463914847,-500.0,0.00031506,2]
[310293347,1704463914860,-500.0,0.00031506,2]
[310293348,1704463914877,-952.84,0.00031506,2]
[310293349,1704463914894,-500.0,0.00031506,2]
[310293350,1704463914912,-500.0,0.00031506,2]
[310293351,1704463914928,-500.0,0.00031506,2]
[310293352,1704463914944,-634.11,0.00031506,2]
[310293353,1704463914959,-500.0,0.00031506,2]
[310293354,1704463914974,-1188.9,0.00031506,2]
[310293355,1704463914989,-500.0,0.00031506,2]
[310293356,1704463915003,-558.13,0.00031506,2]
[310293357,1704463915018,-773.34,0.00031506,2]
[310293358,1704463915032,-500.0,0.00031506,2]
[310293359,1704463915047,-500.0,0.00031506,2]
[310293360,1704463915063,-500.0,0.00031506,2]
[310293361,1704463915078,-500.0,0.00031506,2]
[310293362,1704463915093,-881.16,0.00031506,2]
[310293363,1704463915108,-500.0,0.00031506,2]
[310293364,1704463915124,-500.0,0.00031506,2]
[310293365,1704463915139,-500.0,0.00031506,2]
[310293366,1704463915155,-1431.77,0.00031506,2]
[310293367,1704463915170,-500.0,0.00031506,2]
[310293368,1704463915186,-798.14,0.00031506,2]
[310293369,1704463915201,-500.0,0.00031506,2]
[310293370,1704463915215,-2061.68,0.00031506,2]
[310293371,1704463915231,-500.0,0.00031506,2]
[310293372,1704463915247,-500.0,0.00031506,2]
[310293373,1704463915261,-909.7,0.00031506,2]
[310293374,1704463915277,-500.0,0.00031506,2]
[310293375,1704463915292,-500.0,0.00031506,2]
[310293376,1704463915307,-1481.56,0.00031506,2]
[310293377,1704463915323,-500.0,0.00031506,2]
[310293378,1704463915337,-500.0,0.00031506,2]
[310293379,1704463915353,-1575.41,0.00031506,2]
[310293380,1704463915368,-500.0,0.00031506,2]
[310293381,1704463915384,-982.39,0.00031506,2]
[310293382,1704463915399,-500.0,0.00031506,2]
[310293383,1704463915414,-500.39,0.00031506,2]
[310293384,1704463915429,-500.0,0.00031506,2]
[310293385,1704463915443,-500.0,0.00031506,2]
[310293386,1704463915459,-500.0,0.00031506,2]
[310293387,1704463915475,-630.47034615,0.00031506,2]
[310293388,1704463915489,-615.6123506,0.00031506,2]
[310293389,1704463915503,-616.4,0.00031506,2]
[310293390,1704463915519,-656.28,0.00031506,2]
[310293391,1704463915534,-500.0,0.00031506,2]
[310293392,1704463915549,-615.45,0.00031506,2]
[310293393,1704463915563,-815.67,0.00031506,2]
[310293394,1704463915577,-855.97,0.00031506,2]
[310293395,1704463915592,-500.0,0.00031506,2]
[310293396,1704463915606,-500.0,0.00031506,2]
[310293397,1704463915622,-914.92,0.00031506,2]
[310293398,1704463915638,-500.0,0.00031506,2]
[310293399,1704463915653,-759.49,0.00031506,2]
[310293400,1704463915668,-612.52,0.00031506,2]
[310293401,1704463915683,-500.0,0.00031506,2]
[310293402,1704463915698,-587.37856655,0.00031506,2]
[310293403,1704463915712,-638.72,0.00031506,2]
[310293404,1704463915726,-500.0,0.00031506,2]
[310293405,1704463915741,-500.0,0.00031506,2]
[310293406,1704463915755,-500.0,0.00031506,2]
[310293407,1704463915770,-500.0,0.00031506,2]
[310293408,1704463915785,-500.0,0.00031506,2]
[310293409,1704463915799,-779.76,0.00031506,2]
[310293410,1704463915814,-534.66978649,0.00031506,2]
[310293411,1704463915828,-500.0,0.00031506,2]
[310293412,1704463915842,-1184.83,0.00031506,2]
[310293413,1704463915856,-1087.44,0.00031506,2]
[310293414,1704463915871,-547.36,0.00031506,2]
[310293415,1704463915885,-500.0,0.00031506,2]
[310293416,1704463915901,-500.0,0.00031506,2]
[310293417,1704463915915,-908.56,0.00031506,2]
[310293418,1704463915929,-500.0,0.00031506,2]
[310293419,1704463915944,-500.0,0.00031506,2]
[310293420,1704463915958,-500.0,0.00031506,2]
[310293421,1704463915974,-5038.11,0.00031506,2]
[310293422,1704463915989,-500.0,0.00031506,2]
[310293423,1704463916002,-880.69,0.00031506,2]
[310293424,1704463916017,-884.22,0.00031506,2]
[310293425,1704463916032,-292.66494995,0.00031506,2]
[310293426,1704463916047,-500.0,0.00031506,2]
[310293427,1704463916065,-828.3,0.00031506,2]
[310293428,1704463916078,-500.0,0.00031506,2]
[310293429,1704463916093,-500.0,0.00031506,2]
[310293430,1704463916108,-1954.72,0.00031506,2]
[310293431,1704463916123,-500.0,0.00031506,2]
[310293432,1704463916139,-1200.04,0.00031506,2]
[310293433,1704463916154,-500.0,0.00031506,2]
[310293434,1704463916170,-205.88699876,0.00031506,2]
[310293435,1704463916185,-500.0,0.00031506,2]
[310293436,1704463916199,-964.87,0.00031506,2]
[310293437,1704463916214,-500.0,0.00031506,2]
[310293438,1704463916229,-1145.56,0.00031506,2]
[310293439,1704463916245,-500.0,0.00031506,2]
[310293440,1704463916260,-794.58,0.00031506,2]
[310293441,1704463916273,-534.82,0.00031506,2]
[310293442,1704463916288,-855.41,0.00031506,2]
[310293443,1704463916303,-500.0,0.00031506,2]
[310293444,1704463916319,-773.85,0.00031506,2]
[310293445,1704463916333,-505.02890516,0.00031506,2]
[310293446,1704463916349,-201.77042823,0.00031506,2]
[310293447,1704463916365,-500.0,0.00031506,2]
[310293448,1704463916379,-500.0,0.00031506,2]
[310293449,1704463916394,-500.0,0.00031506,2]
[310293450,1704463916410,-1238.16,0.00031506,2]
[310293451,1704463916425,-500.0,0.00031506,2]
[310293452,1704463916439,-251.88136409,0.00031506,2]
[310293453,1704463916455,-3690.73,0.00031506,2]
[310293454,1704463916471,-500.0,0.00031506,2]
[310293455,1704463916486,-500.0,0.00031506,2]